bitfinex/quotes_SOLUSD_20250612
["timestamp","ask_amount","ask_price","bid_price","bid_amount"]
[1749739784349,167.72885204,160.48,160.43,44.59162069]
[1749739785750,149.1,160.48,160.43,18.51162069]
[1749739786224,149.1,160.48,160.44,18.62885204]
[1749739786651,149.1,160.48,160.47,2.286]
[1749739787653,167.72885204,160.48,160.47,2.286]
[1749739788153,149.1,160.48,160.47,2.286]
[1749739788335,167.72885204,160.48,160.47,2.286]
[1749739789655,149.1,160.48,160.47,2.286]
[1749739789858,167.72885204,160.48,160.47,2.286]
[1749739790357,149.1,160.48,160.47,2.286]
[1749739792466,167.72885204,160.48,160.47,2.286]
[1749739792761,149.1,160.48,160.47,2.286]
[1749739794144,149.1,160.48,160.47,20.91485204]
[1749739794461,149.1,160.48,160.47,2.286]
[1749739794653,149.1,160.48,160.47,20.91485204]
[1749739795649,149.1,160.48,160.47,2.286]
[1749739795954,149.1,160.48,160.47,20.91485204]
[1749739797068,149.1,160.48,160.47,2.286]
[1749739799041,24.85900113,160.51,160.47,2.286]
[1749739799541,18.62885204,160.49,160.47,2.286]
[1749739800361,18.62885204,160.5,160.47,2.286]
[1749739800964,6.23091781,160.49,160.47,2.286]
[1749739801139,24.85976985,160.49,160.47,2.286]
[1749739801471,18.62885204,160.48,160.47,2.286]
[1749739801760,2.33587295,160.48,160.47,2.286]
[1749739801945,18.62885204,160.5,160.47,2.286]
[1749739802456,18.91317518,160.51,160.47,2.286]
[1749739803053,2.33592149,160.5,160.47,2.286]
[1749739803259,18.62885204,160.5,160.47,2.286]
[1749739804455,18.62885204,160.49,160.47,2.286]
[1749739805463,18.62885204,160.5,160.47,2.286]
[1749739805658,2.33592417,160.49,160.47,2.286]
[1749739805967,4.65300756,160.52,160.47,2.286]
[1749739806163,18.62885204,160.5,160.47,2.286]
[1749739808877,0.28432314,160.52,160.47,2.286]
[1749739809082,20.96464526,160.51,160.47,2.286]
[1749739809257,2.33579357,160.5,160.47,2.286]
[1749739809779,2.33579732,160.5,160.47,2.286]
[1749739810179,2.33580978,160.5,160.47,2.286]
[1749739810368,2.33579732,160.5,160.47,2.286]
[1749739810883,20.96464936,160.5,160.47,2.286]
[1749739811081,18.62885204,160.5,160.47,2.286]
[1749739812881,6.51435772,160.52,160.47,2.286]
[1749739813179,18.62885204,160.5,160.47,2.286]
[1749739815757,18.62885204,160.51,160.47,2.286]
[1749739820881,6.51416811,160.52,160.47,2.286]
[1749739821062,20.96449172,160.51,160.47,2.286]
[1749739821262,18.62885204,160.51,160.47,2.286]
[1749739821882,18.62885204,160.5,160.47,2.286]
[1749739822063,18.62885204,160.48,160.47,2.286]
[1749739822266,11.17229942,160.52,160.47,2.286]
[1749739822487,18.62885204,160.49,160.47,2.286]
[1749739826786,4.65813131,160.52,160.47,2.286]
[1749739827085,20.96437888,160.52,160.47,20.91485204]
[1749739827288,11.9199597,160.52,160.47,14.2059597]
[1749739827526,11.9199597,160.51,160.47,2.286]
[1749739829289,18.62627043,160.51,160.47,2.286]
[1749739831186,18.62627043,160.5,160.47,2.286]
[1749739831391,0.28432314,160.52,160.47,2.286]
[1749739831684,181.32941301,160.53,160.47,2.286]
[1749739831885,181.32941301,160.53,160.47,20.91227043]
[1749739832065,18.62627043,160.51,160.47,20.91227043]
[1749739833578,181.32941301,160.53,160.47,20.91227043]
[1749739833579,175.1,160.53,160.47,20.91227043]
[1749739833776,167.72627043,160.53,160.48,18.62627043]
[1749739833975,18.62627043,160.52,160.47,20.91227043]
[1749739836778,18.62627043,160.52,160.47,2.286]
[1749739836979,18.62627043,160.52,160.47,20.91227043]
[1749739839093,149.1,160.57,160.49,6.5013]
[1749739839392,18.62627043,160.53,160.5,25.54]
[1749739839692,18.62627043,160.53,160.48,18.62627043]
[1749739839897,18.62627043,160.52,160.49,25.54]
[1749739840193,24.85447172,160.56,160.49,25.54]
[1749739840397,18.62627043,160.52,160.49,25.54]
[1749739841075,18.62627043,160.53,160.49,25.54]
[1749739842212,6.2286919,160.55,160.49,44.16627043]
[1749739842373,10.88627611,160.56,160.5,18.62627043]
[1749739842572,24.8546329,160.56,160.51,18.62627043]
[1749739844495,18.62627043,160.55,160.51,18.62627043]
[1749739845085,6.22836247,160.56,160.51,18.62627043]
[1749739845289,18.62627043,160.55,160.51,18.62627043]
[1749739845499,18.62627043,160.54,160.49,18.64964886]
[1749739845673,24.85497761,160.55,160.5,44.16627043]
[1749739845872,6.22835666,160.56,160.51,18.62627043]
[1749739846068,18.62627043,160.55,160.51,18.62627043]
[1749739847809,24.85491013,160.55,160.51,18.62627043]
[1749739848010,6.2286397,160.55,160.51,18.62627043]
[1749739848513,24.85491013,160.55,160.51,18.62627043]
[1749739850794,18.62627043,160.54,160.5,44.16627043]
[1749739851290,11.91624452,160.54,160.5,37.45624452]
[1749739852097,11.91624452,160.53,160.48,11.91624452]
[1749739852299,11.91624452,160.52,160.48,25.52]
[1749739852620,6.2286397,160.55,160.49,11.91624452]
[1749739852788,11.91624452,160.54,160.49,11.91624452]
[1749739853300,6.22835393,160.56,160.51,11.91624452]
[1749739853506,155.32797697,160.57,160.52,11.91624452]
[1749739853708,167.24422149,160.57,160.52,11.91624452]
[1749739853907,11.91624452,160.56,160.51,11.91624452]
[1749739854287,11.91624452,160.56,160.5,25.52]
[1749739854492,11.91624452,160.56,160.51,11.91624452]
[1749739855113,11.91624452,160.56,160.5,25.52]
[1749739855303,18.61487305,160.56,160.51,18.61487305]
[1749739856005,24.84322718,160.56,160.51,18.61487305]
[1749739856407,6.22835413,160.56,160.52,18.61487305]
[1749739857620,24.84322718,160.56,160.51,18.61487305]
[1749739858025,18.61487305,160.55,160.5,25.52]
[1749739858205,18.61487305,160.55,160.51,18.61487305]
[1749739858719,6.22835413,160.56,160.51,18.61487305]
[1749739858924,18.61487305,160.55,160.51,18.61487305]
[1749739860513,24.84352529,160.55,160.5,44.13487305]
[1749739860710,24.84352529,160.55,160.5,44.46845478]
[1749739862123,6.22865224,160.55,160.5,25.85358173]
[1749739862331,18.61487305,160.53,160.5,25.85358173]
[1749739862501,24.84433645,160.53,160.5,25.85358173]
[1749739863200,18.61487305,160.52,160.5,0.33358173]
[1749739863403,18.61487305,160.51,160.5,0.33358173]
[1749739863823,18.61487305,160.52,160.5,0.33358173]
[1749739864322,24.84473242,160.52,160.5,0.33358173]
[1749739865329,18.61487305,160.51,160.5,0.33358173]
[1749739865827,18.61487305,160.51,160.47,2.286]
[1749739866024,18.61487305,160.49,160.47,2.286]
[1749739867003,24.84590219,160.49,160.47,2.286]
[1749739868026,18.61487305,160.48,160.47,2.286]
[1749739869010,24.84617913,160.48,160.47,2.286]
[1749739869428,18.61487305,160.48,160.47,2.286]
[1749739869826,18.61487305,160.49,160.47,2.286]
[1749739870621,24.84516958,160.51,160.47,2.286]
[1749739871411,18.61487305,160.51,160.47,20.90087305]
[1749739872631,18.61487305,160.51,160.47,2.286]
[1749739873838,24.84510606,160.51,160.47,2.286]
[1749739874337,6.23023301,160.51,160.47,2.286]
[1749739874530,24.84510606,160.51,160.47,2.286]
[1749739874834,18.61487305,160.49,160.47,2.286]
[1749739875032,18.61487305,160.48,160.47,2.286]
[1749739876432,24.84585446,160.49,160.47,2.286]
[1749739877555,18.61487305,160.48,160.47,2.286]
[1749739878321,6.23098141,160.49,160.47,2.286]
[1749739878538,6.23014142,160.51,160.47,20.90087305]
[1749739878739,173.9438854,160.54,160.48,18.64964886]
[1749739879044,24.8438854,160.54,160.49,44.13487305]
[1749739879218,6.22901235,160.54,160.5,18.61487305]
[1749739879725,24.84361107,160.55,160.5,18.61487305]
[1749739879909,6.22873802,160.55,160.5,18.61487305]
[1749739880113,24.84361107,160.55,160.5,18.61487305]
[1749739881509,24.84361107,160.55,160.49,44.13487305]
[1749739884044,18.61487305,160.54,160.49,44.13487305]
[1749739884425,24.84361107,160.55,160.49,44.13487305]
[1749739884625,18.61487305,160.54,160.49,25.52]
[1749739884825,18.61487305,160.54,160.49,44.13487305]
[1749739885738,24.84361107,160.55,160.5,18.61487305]
[1749739886445,18.61487305,160.54,160.49,44.13487305]
[1749739886923,24.84361107,160.55,160.5,18.61487305]
[1749739887523,24.84361107,160.55,160.49,25.52]
[1749739887744,24.84361107,160.55,160.5,18.61487305]
[1749739889933,18.61487305,160.54,160.49,44.13487305]
[1749739890436,18.61487305,160.51,160.47,2.286]
[1749739890639,18.61487305,160.5,160.47,27.806]
[1749739890945,6.23020771,160.51,160.47,2.286]
[1749739891243,18.61487305,160.5,160.47,2.286]
[1749739892836,24.84551888,160.5,160.47,2.286]
[1749739893235,18.61487305,160.49,160.47,2.286]
[1749739894938,6.51407644,160.52,160.47,2.286]
[1749739895139,18.61487305,160.49,160.47,2.286]
[1749739895853,18.61487305,160.48,160.47,2.286]
[1749739896630,24.84617913,160.48,160.47,2.286]
[1749739897243,6.23130608,160.48,160.47,2.286]
[1749739897439,24.84617913,160.48,160.47,2.286]
[1749739899443,6.23130608,160.48,160.47,2.286]
[1749739899732,24.84617913,160.48,160.47,2.286]
[1749739900154,6.23130608,160.48,160.47,2.286]
[1749739900332,24.84617913,160.48,160.47,2.286]
[1749739901154,6.23130608,160.48,160.47,2.286]
[1749739901359,24.84617913,160.48,160.47,2.286]
[1749739902836,6.23130608,160.48,160.47,2.286]
[1749739903130,24.84617913,160.48,160.47,2.286]
[1749739903863,6.2297533,160.52,160.47,20.90087305]
[1749739904038,24.84429051,160.53,160.48,18.61487305]
[1749739904659,6.22941746,160.53,160.48,18.61487305]
[1749739904953,24.84429051,160.53,160.48,18.61487305]
[1749739906758,18.61487305,160.52,160.48,18.61487305]
[1749739907164,18.61487305,160.53,160.47,2.286]
[1749739907357,18.61487305,160.53,160.48,18.61487305]
[1749739909757,24.84426994,160.53,160.47,2.286]
[1749739910087,18.61487305,160.52,160.47,20.90087305]
[1749739910246,6.22939689,160.53,160.47,20.90087305]
[1749739910568,18.61487305,160.52,160.47,20.90087305]
[1749739910868,18.61487305,160.52,160.47,2.286]
[1749739911074,18.61487305,160.52,160.47,20.90087305]
[1749739911883,24.84465998,160.52,160.47,20.90087305]
[1749739912047,18.61487305,160.52,160.47,20.90087305]
[1749739912977,18.61487305,160.48,160.47,2.286]
[1749739913553,24.84617913,160.48,160.47,2.286]
[1749739917068,6.23052959,160.5,160.47,2.286]
[1749739917470,24.84540264,160.5,160.47,2.286]
[1749739917782,18.61487305,160.49,160.47,2.286]
[1749739919577,24.84617913,160.48,160.47,2.286]
[1749739921397,0.28432314,160.44,160.43,0.29667924]
[1749739921706,0.28432314,160.4,160.33,6.0648]
[1749739921908,18.61487305,160.34,160.29,51.5]
[1749739922198,18.61487305,160.33,160.3,25.5]
[1749739922567,18.89919619,160.4,160.3,25.5]
[1749739922568,18.61487305,160.34,160.3,25.5]
[1749739923390,18.89919619,160.4,160.3,25.5]
[1749739923391,18.61487305,160.33,160.3,25.5]
[1749739923879,18.61487305,160.34,160.3,25.5]
[1749739928109,18.61487305,160.33,160.3,25.5]
[1749739928500,0.28432314,160.37,160.3,25.5]
[1749739928677,18.61487305,160.33,160.3,25.5]
[1749739932579,18.61487305,160.34,160.3,25.52]
[1749739933191,18.61487305,160.33,160.29,18.61487305]
[1749739933391,18.61487305,160.33,160.3,25.52]
[1749739934310,6.51993337,160.37,160.3,25.52]
[1749739934600,18.61487305,160.34,160.3,25.52]
[1749739935608,149.1,160.39,160.31,37.26452191]
[1749739935787,149.1,160.39,160.3,25.52]
[1749739935788,18.61487305,160.34,160.3,44.13487305]
[1749739936105,18.61487305,160.33,160.3,25.52]
[1749739936491,18.61487305,160.33,160.29,25.52]
[1749739937008,18.61487305,160.34,160.29,44.13487305]
[1749739937309,167.71487305,160.39,160.33,18.61487305]
[1749739937504,167.71487305,160.39,160.34,44.13487305]
[1749739938184,167.71487305,160.39,160.35,18.61487305]
[1749739938395,149.1,160.39,160.35,18.61487305]
[1749739938621,18.61487305,160.4,160.35,18.61487305]
[1749739938906,18.61487305,160.39,160.35,18.61487305]
[1749739939404,6.23402591,160.41,160.34,25.52]
[1749739939405,18.61487305,160.38,160.34,25.52]
[1749739939712,6.23402591,160.41,160.34,25.52]
[1749739939713,18.61487305,160.37,160.34,25.52]
[1749739939909,18.61487305,160.36,160.32,18.61487305]
[1749739940139,18.61487305,160.36,160.33,25.52]
[1749739941193,18.61487305,160.35,160.33,25.52]
[1749739941513,18.61487305,160.35,160.3,37.26452191]
[1749739941695,6.23580955,160.37,160.31,25.52]
[1749739941885,193.99919619,160.4,160.31,25.52]
[1749739941886,149.1,160.4,160.36,18.61487305]
[1749739942086,18.61487305,160.41,160.36,18.61487305]
[1749739943002,18.61487305,160.4,160.36,18.61487305]
[1749739943713,7.78240089,160.42,160.36,18.61487305]
[1749739943907,18.61487305,160.4,160.36,18.61487305]
[1749739944408,18.61487305,160.41,160.36,18.61487305]
[1749739944611,18.61487305,160.41,160.37,18.61487305]
[1749739945416,0.28432314,160.43,160.35,25.52]
[1749739945707,18.61487305,160.41,160.36,18.61487305]
[1749739947816,18.61487305,160.42,160.37,18.61487305]
[1749739948709,24.84851728,160.42,160.37,18.61487305]
[1749739949100,18.61487305,160.4,160.35,25.52]
[1749739949396,18.61487305,160.4,160.36,18.61487305]
[1749739949718,6.23364423,160.42,160.36,18.61487305]
[1749739950012,18.61487305,160.41,160.36,18.61487305]
[1749739950309,18.61487305,160.4,160.35,25.52]
[1749739950513,18.61487305,160.39,160.34,44.13487305]
[1749739950705,18.61487305,160.39,160.34,18.61487305]
[1749739951014,18.61487305,160.4,160.35,18.61487305]
[1749739951204,18.61487305,160.4,160.36,18.61487305]
[1749739952034,24.84891949,160.41,160.36,18.61487305]
[1749739954226,149.1,160.44,160.4,18.61487305]
[1749739954408,155.33262359,160.45,160.41,18.61487305]
[1749739954720,18.61487305,160.44,160.4,18.61487305]
[1749739955221,155.33262359,160.45,160.4,18.61487305]
[1749739955429,173.94749664,160.45,160.4,18.61487305]
[1749739956506,173.94749664,160.45,160.37,25.52]
[1749739956507,18.61487305,160.44,160.39,18.61487305]
[1749739956704,155.33262359,160.45,160.39,18.61487305]
[1749739956901,173.94749664,160.45,160.4,18.61487305]
[1749739957116,155.33262359,160.45,160.39,18.61487305]
[1749739957315,18.61487305,160.44,160.39,18.61487305]
[1749739957825,18.61487305,160.44,160.37,25.52]
[1749739957826,173.94749664,160.45,160.4,18.61487305]
[1749739963134,155.33262359,160.45,160.4,18.61487305]
[1749739963320,173.94749664,160.45,160.4,18.61487305]
[1749739965330,155.33262359,160.45,160.4,18.61487305]
[1749739965528,173.94749664,160.45,160.4,18.61487305]
[1749739966112,18.61487305,160.41,160.31,44.16964886]
[1749739966417,18.61487305,160.4,160.36,18.61487305]
[1749739967031,0.28432314,160.42,160.36,18.61487305]
[1749739967223,18.61487305,160.4,160.36,18.61487305]
[1749739967932,6.23449998,160.4,160.36,18.61487305]
[1749739968135,24.84937303,160.4,160.36,18.61487305]
[1749739968636,6.23449998,160.4,160.36,18.61487305]
[1749739968837,24.84937303,160.4,160.36,18.61487305]
[1749739970743,18.61487305,160.38,160.33,44.61487305]
[1749739971112,18.61487305,160.38,160.34,18.61487305]
[1749739971313,0.28432314,160.39,160.34,18.61487305]
[1749739971532,18.61487305,160.38,160.34,18.61487305]
[1749739972541,24.8501695,160.38,160.34,18.61487305]
[1749739972731,24.8501695,160.38,160.32,25.52]
[1749739972944,24.8501695,160.38,160.33,18.61487305]
[1749739973645,18.61487305,160.37,160.33,18.61487305]
[1749739974128,24.85047385,160.37,160.33,18.61487305]
[1749739974334,24.85047385,160.37,160.32,44.13487305]
[1749739975335,6.2356008,160.37,160.32,44.13487305]
[1749739975541,24.85047385,160.37,160.32,25.52]
[1749739975722,24.85047385,160.37,160.32,18.61487305]
[1749739975923,24.85047385,160.37,160.32,44.13487305]
[1749739976945,24.85047385,160.37,160.32,25.52]
[1749739977120,24.85047385,160.37,160.32,44.13487305]
[1749739977531,18.61487305,160.36,160.32,44.13487305]
[1749739978022,24.85047385,160.37,160.32,44.13487305]
[1749739978940,24.85047385,160.37,160.32,18.61487305]
[1749739982243,24.85047385,160.37,160.31,51.52]
[1749739982244,18.61487305,160.35,160.3,6.2223]
[1749739982548,18.61487305,160.32,160.27,0.27883555]
[1749739982858,18.61487305,160.3,160.27,0.27883555]
[1749739983443,24.85338504,160.3,160.27,0.27883555]
[1749739984232,18.61487305,160.3,160.27,0.27883555]
[1749739984437,18.61487305,160.28,160.27,0.27883555]
[1749739985648,18.61487305,160.29,160.27,0.27883555]
[1749739987752,24.85278709,160.31,160.27,0.27883555]
[1749739988451,18.61487305,160.28,160.27,0.27883555]
[1749739988954,18.61487305,160.3,160.27,0.27883555]
[1749739990552,6.23723537,160.33,160.27,0.27883555]
[1749739990739,18.61487305,160.31,160.27,18.8937086]
[1749739991839,18.61487305,160.31,160.27,0.27883555]
[1749739992541,18.61487305,160.3,160.27,0.27883555]
[1749739993239,18.61487305,160.31,160.27,0.27883555]
[1749739994235,18.61487305,160.3,160.27,0.27883555]
[1749739994449,24.85289352,160.31,160.27,0.27883555]
[1749739996843,18.61487305,160.3,160.27,0.27883555]
[1749739998041,18.61487305,160.29,160.27,0.27883555]
[1749739998438,18.61487305,160.28,160.27,0.27883555]
[1749739998645,6.2390816,160.28,160.27,0.27883555]
[1749739998944,24.85395465,160.28,160.27,0.27883555]
[1749740001436,24.85361141,160.29,160.27,0.27883555]
[1749740001635,15.5947851,160.31,160.27,0.27883555]
[1749740001636,0.14216157,160.32,160.27,0.27883555]
[1749740001841,6.23674691,160.34,160.31,18.61487305]
[1749740002074,155.33647516,160.35,160.32,18.61487305]
[1749740002449,149.1,160.35,160.32,18.61487305]
[1749740002696,149.1,160.35,160.34,18.61487305]
[1749740002978,6.23574399,160.37,160.34,18.61487305]
[1749740003364,6.23510016,160.39,160.36,18.61487305]
[1749740003877,24.84997321,160.39,160.32,18.64964886]
[1749740004077,18.61487305,160.38,160.33,18.61487305]
[1749740004979,18.61487305,160.38,160.34,18.61487305]
[1749740005187,6.23510016,160.39,160.34,18.61487305]
[1749740005363,24.84997321,160.39,160.34,18.61487305]
[1749740007267,24.84997321,160.39,160.32,18.64964886]
[1749740007461,24.84997321,160.39,160.34,18.61487305]
[1749740007667,18.61487305,160.38,160.33,18.61487305]
[1749740007972,18.61487305,160.37,160.32,18.61487305]
[1749740008172,18.61487305,160.36,160.32,18.61487305]
[1749740008675,18.61487305,160.37,160.32,18.61487305]
[1749740008982,18.61487305,160.37,160.33,18.61487305]
[1749740009381,6.23596906,160.36,160.33,18.61487305]
[1749740010176,6.23596906,160.36,160.31,25.52]
[1749740010360,6.23596906,160.36,160.32,18.61487305]
[1749740016387,18.61487305,160.36,160.32,18.61487305]
[1749740017192,18.61487305,160.35,160.3,18.61487305]
[1749740017372,18.61487305,160.35,160.3,44.13487305]
[1749740017688,18.61487305,160.35,160.3,18.61487305]
[1749740017879,18.61487305,160.35,160.31,18.61487305]
[1749740018184,18.61487305,160.36,160.31,18.61487305]
[1749740018585,24.85105858,160.36,160.31,18.61487305]
[1749740019495,18.61487305,160.34,160.29,25.52]
[1749740019796,18.61487305,160.35,160.31,18.61487305]
[1749740020676,24.85129493,160.35,160.3,25.5]
[1749740020896,24.85129493,160.35,160.31,18.61487305]
[1749740021092,18.61487305,160.33,160.27,26.27883555]
[1749740021296,18.61487305,160.32,160.27,18.8937086]
[1749740021478,18.61487305,160.31,160.27,18.8937086]
[1749740021803,18.61487305,160.31,160.27,44.3937086]
[1749740021985,18.61487305,160.31,160.27,18.8937086]
[1749740022186,18.61487305,160.32,160.27,44.3937086]
[1749740023210,24.85278709,160.31,160.27,0.27883555]
[1749740023508,18.61487305,160.3,160.27,0.27883555]
[1749740025401,6.23791404,160.31,160.27,0.27883555]
[1749740025402,24.85278709,160.31,160.27,0.27883555]
[1749740026479,18.61487305,160.3,160.27,0.27883555]
[1749740027494,6.23791404,160.31,160.27,0.27883555]
[1749740027692,18.61487305,160.3,160.27,0.27883555]
[1749740027899,24.85329064,160.3,160.27,0.27883555]
[1749740029205,41.59089774,160.35,160.27,0.27883555]
[1749740029386,24.85161996,160.34,160.29,18.61487305]
[1749740030608,24.85135596,160.35,160.31,18.61487305]
[1749740030993,24.85135596,160.35,160.3,18.61487305]
[1749740032198,18.61487305,160.34,160.29,25.52]
[1749740032392,18.61487305,160.33,160.29,25.52]
[1749740032617,18.61487305,160.33,160.29,44.13487305]
[1749740033502,24.85214737,160.33,160.29,44.13487305]
[1749740033701,24.85123101,160.35,160.3,18.61487305]
[1749740033885,24.85123101,160.35,160.31,18.61487305]
[1749740034088,24.85123101,160.35,160.3,18.61487305]
[1749740034312,18.61487305,160.34,160.3,18.61487305]
[1749740034697,24.85123101,160.35,160.3,18.61487305]
[1749740035211,173.95086291,160.36,160.31,18.61487305]
[1749740035411,149.1,160.36,160.32,18.61487305]
[1749740035711,155.33600255,160.36,160.29,25.52]
[1749740035919,155.33600255,160.36,160.31,18.61487305]
[1749740035920,173.9508756,160.36,160.31,18.61487305]
[1749740037511,173.9508756,160.36,160.32,18.61487305]
[1749740037898,167.71487305,160.36,160.32,18.61487305]
[1749740038212,149.1,160.36,160.32,18.61487305]
[1749740038407,149.1,160.36,160.33,18.61487305]
[1749740039101,149.1,160.36,160.32,18.61487305]
[1749740041610,149.1,160.36,160.3,18.64964886]
[1749740041611,173.95100507,160.36,160.31,18.61487305]
[1749740042199,155.33613202,160.36,160.31,18.61487305]
[1749740042404,173.95100507,160.36,160.31,18.61487305]
[1749740043111,173.95100507,160.36,160.29,25.52]
[1749740043318,18.61487305,160.35,160.31,18.61487305]
[1749740043986,24.85200895,160.33,160.27,0.27883555]
[1749740044185,18.61487305,160.3,160.27,0.27883555]
[1749740044390,18.61487305,160.28,160.27,0.27883555]
[1749740046018,25.13827779,160.28,160.27,0.27883555]
[1749740049814,6.52340474,160.28,160.27,0.27883555]
[1749740050024,25.13827779,160.28,160.27,0.27883555]
[1749740050534,174.23827779,160.28,160.27,0.27883555]
[1749740053523,155.62340474,160.28,160.27,0.27883555]
[1749740053828,174.23827779,160.28,160.27,0.27883555]
[1749740065634,155.62340474,160.28,160.27,0.27883555]
[1749740065811,174.23827779,160.28,160.27,0.27883555]
[1749740066342,149.1,160.28,160.27,0.27883555]
[1749740067441,18.61487305,160.3,160.27,0.27883555]
[1749740067812,24.99505526,160.31,160.27,0.27883555]
[1749740068012,18.61487305,160.3,160.27,0.27883555]
[1749740068213,6.38018221,160.31,160.27,0.27883555]
[1749740068514,18.61487305,160.3,160.27,0.27883555]
[1749740069417,18.61487305,160.29,160.27,0.27883555]
[1749740070733,18.61487305,160.28,160.27,0.27883555]
[1749740070932,0.28432314,160.28,160.27,0.27883555]
[1749740071135,18.89919619,160.28,160.27,0.27883555]
[1749740071524,25.13827779,160.28,160.27,0.27883555]
[1749740072612,24.85363183,160.29,160.27,0.27883555]
[1749740072834,6.23875878,160.29,160.27,0.27883555]
[1749740073539,24.85363183,160.29,160.27,0.27883555]
[1749740074236,18.61487305,160.28,160.27,0.27883555]
[1749740075922,24.85395465,160.28,160.27,0.27883555]
[1749740076728,6.2390816,160.28,160.27,0.27883555]
[1749740077046,24.85395465,160.28,160.27,0.27883555]
[1749740079523,6.2390816,160.28,160.27,0.27883555]
[1749740079837,149.1,160.3,160.27,0.27883555]
[1749740080237,173.95317658,160.3,160.27,0.27883555]
[1749740080423,18.61487305,160.29,160.27,0.27883555]
[1749740080627,18.61487305,160.28,160.27,0.27883555]
[1749740081126,18.89919619,160.28,160.27,0.27883555]
[1749740081330,25.13827779,160.28,160.27,0.27883555]
[1749740085348,6.52340474,160.28,160.27,0.27883555]
[1749740085527,24.85395465,160.28,160.27,0.27883555]
[1749740087143,25.13827779,160.28,160.27,0.27883555]
[1749740092050,6.52340474,160.28,160.27,0.27883555]
[1749740092360,6.23878625,160.29,160.27,0.27883555]
[1749740093267,24.8536593,160.29,160.27,0.27883555]
[1749740093770,24.8536593,160.29,160.24,18.61487305]
[1749740094468,155.33841971,160.3,160.26,18.61487305]
[1749740094668,155.33841971,160.3,160.27,18.61487305]
[1749740094669,149.1,160.3,160.27,18.61487305]
[1749740094966,149.1,160.3,160.23,18.64964886]
[1749740094967,149.1,160.3,160.28,18.61487305]
[1749740095749,149.1,160.3,160.27,18.61487305]
[1749740097833,6.23803287,160.31,160.27,18.61487305]
[1749740099459,24.85253947,160.32,160.27,18.61487305]
[1749740100073,18.61487305,160.31,160.25,1.6605]
[1749740100245,18.61487305,160.31,160.27,18.61487305]
[1749740100565,18.61487305,160.31,160.25,1.6605]
[1749740100745,6.23830318,160.3,160.27,18.61487305]
[1749740101478,4.6634013,160.33,160.29,18.61487305]
[1749740101770,25.13642868,160.33,160.25,1.6605]
[1749740101963,25.13642868,160.33,160.28,18.61487305]
[1749740102264,18.61487305,160.32,160.28,18.61487305]
[1749740102777,18.61487305,160.31,160.26,25.5]
[1749740102960,18.61487305,160.3,160.25,20.27537305]
[1749740103146,18.61487305,160.3,160.25,45.77537305]
[1749740103353,18.61487305,160.3,160.26,18.61487305]
[1749740104365,24.85330183,160.3,160.26,18.61487305]
[1749740105448,4.66306251,160.32,160.27,18.61487305]
[1749740105449,24.85295405,160.31,160.27,18.61487305]
[1749740106965,24.85295405,160.31,160.25,1.6605]
[1749740107274,24.85295405,160.31,160.26,18.61487305]
[1749740109779,6.238081,160.31,160.26,18.61487305]
[1749740109989,24.85295405,160.31,160.26,18.61487305]
[1749740112755,24.85295405,160.31,160.27,18.61487305]
[1749740113006,6.23752495,160.32,160.27,18.61487305]
[1749740113155,6.23728131,160.33,160.3,18.61487305]
[1749740113490,6.23728131,160.33,160.27,6.4104]
[1749740113652,18.89919619,160.31,160.25,1.6605]
[1749740113853,18.61487305,160.3,160.26,18.61487305]
[1749740114080,18.61487305,160.3,160.25,20.27537305]
[1749740114458,18.61487305,160.3,160.25,1.6605]
[1749740114687,18.61487305,160.3,160.25,20.27537305]
[1749740114900,6.23869237,160.29,160.25,20.27537305]
[1749740116261,6.23837266,160.3,160.26,18.61487305]
[1749740116463,24.85286605,160.31,160.27,18.61487305]
[1749740116659,6.23765075,160.32,160.29,18.61487305]
[1749740116863,155.33683574,160.34,160.3,18.61487305]
[1749740117481,173.95170879,160.34,160.3,18.61487305]
[1749740118071,173.95170879,160.34,160.29,18.61487305]
[1749740119776,173.95170879,160.34,160.25,27.6605]
[1749740119987,18.61487305,160.31,160.26,44.11487305]
[1749740120312,18.61487305,160.31,160.26,18.61487305]
[1749740120984,18.61487305,160.3,160.26,18.61487305]
[1749740121360,24.85343323,160.3,160.26,18.61487305]
[1749740121561,6.23856018,160.3,160.26,18.61487305]
[1749740125374,24.85343323,160.3,160.26,18.61487305]
[1749740127576,24.85343323,160.3,160.25,20.27537305]
[1749740127767,24.85343323,160.3,160.25,18.61487305]
[1749740128361,40.44919118,160.3,160.25,18.61487305]
[1749740128566,18.61487305,160.27,160.22,18.8315061]
[1749740128765,0.28432314,160.29,160.22,18.8315061]
[1749740128766,18.61487305,160.26,160.22,18.8315061]